[Event "WYCC 2018 O14"]
[Site "Halkidiki"]
[Date "2018.10.27"]
[Round "8"]
[White "Spyropoulos, Nikolaos"]
[Black "Tsay, Vincent"]
[Result "1-0"]
[ECO "B42"]
[WhiteElo "2378"]
[BlackElo "2310"]
[Annotator "NA"]
[PlyCount "135"]
[EventDate "2018.10.20"]
[EventType "swiss"]
[EventCountry "GRE"]
[SourceTitle "playchess.com"]
[Source "ChessBase"]
[SourceQuality "1"]
[TimeControl "40/5400+30:1800+30"]

1. e4 {[%emt 0:00:00]} c5 {[%emt 0:00:00]} 2. Nf3 {[%emt 0:00:00]} e6 {[%emt 0:00:00]} 3. d4 {[%emt 0:00:00]} cxd4 {[%emt 0:00:00]} 4. Nxd4 {[%emt 0:00:00]} a6 {[%emt 0:00:00]} 5. Bd3 {[%emt 0:00:49]} Bc5 {[%emt 0:00:01]} 6. Nb3 {[%emt 0:00:14]} Ba7 {[%emt 0:00:07]} 7. O-O {[%emt 0:06:28]} Ne7 {[%emt 0:01:16]} 8. c4 {[%emt 0:02:20]} Nbc6 {[%emt 0:01:07]} 9. Nc3 {[%emt 0:01:45]} O-O {[%emt 0:00:27]} 10. Bf4 {[%emt 0:09:45]} d6 {[%emt 0:02:39]} 11. Qd2 {[%emt 0:02:07]} e5 {[%emt 0:03:33]} 12. Be3 {[%emt 0:02:01]} Bxe3 {[%emt 0:00:33]} 13. fxe3 {[%emt 0:09:43]} Be6 {[%emt 0:03:34]} 14. Nd5 {[%emt 0:06:16]} a5 {[%emt 0:07:58]} 15. Nc1 {[%emt 0:14:48]} Bxd5 {[%emt 0:07:34]} 16. exd5 {[%emt 0:00:53]} Nb8 {[%emt 0:02:18]} 17. Ne2 {[%emt 0:03:06]} Nd7 {[%emt 0:02:17]} 18. Nc3 {[%emt 0:06:38]} Nc5 {[%emt 0:01:42]} 19. Bc2 {[%emt 0:00:13]} Nc8 {[%emt 0:02:29]} 20. Rf3 {[%emt 0:03:38]} g6 {[%emt 0:03:04]} 21. Raf1 {[%emt 0:05:09]} Nb6 {[%emt 0:03:38]} 22. Qe2 {[%emt 0:01:56]} f5 {[%emt 0:02:03]} 23. Nb5 {[%emt 0:00:32]} Qe7 {[%emt 0:01:37]} 24. Kh1 {[%emt 0:01:46]} Na6 {[%emt 0:03:11]} 25. R3f2 {[%emt 0:03:51]} Nc7 {[%emt 0:03:26]} 26. Nc3 {[%emt 0:00:23]} Nd7 {[%emt 0:04:45]} 27. g3 {[%emt 0:00:59]} Qg5 {[%emt 0:10:36]} 28. a3 {[%emt 0:03:18]} Nf6 {[%emt 0:06:10]} 29. c5 {[%emt 0:04:02]} Ng4 {[%emt 0:02:54]} 30. Rf3 {[%emt 0:00:55]} Qe7 {[%emt 0:05:21]} 31. e4 {[%emt 0:04:50]} f4 {[%emt 0:06:03]} 32. gxf4 {[%emt 0:00:07]} dxc5 {[%emt 0:00:35]} 33. f5 {[%emt 0:01:19]} Ra6 {[%emt 0:05:06]} 34. Qg2 {[%emt 0:05:02]} Nh6 {[%emt 0:05:52]} 35. fxg6 {[%emt 0:00:24]} Rxf3 {[%emt 0:00:24]} 36. gxh7+ {[%emt 0:00:04]} Kxh7 {[%emt 0:00:13]} 37. Qxf3 {[%emt 0:00:07]} Rg6 {[%emt 0:01:01]} 38. Bd1 {[%emt 0:01:17]} Ne8 {[%emt 0:01:35]} 39. Qf8 {[%emt 0:02:03]} Qg5 {[%emt 0:01:37]} 40. Qf2 {[%emt 0:00:00]} Nd6 {[%emt 0:00:00]} 41. Rg1 {[%emt 0:14:36]} Qxg1+ {[%emt 0:05:41]} 42. Qxg1 {[%emt 0:00:09]} Rxg1+ {[%emt 0:00:06]} 43. Kxg1 {[%emt 0:00:04]} Kg7 {[%emt 0:02:37]} 44. Be2 {[%emt 0:01:05]} Kf6 {[%emt 0:01:16]} 45. Kf2 {[%emt 0:01:12]} Nhf7 {[%emt 0:01:44]} 46. Ke3 {[%emt 0:04:41]} Ng5 {[%emt 0:02:13]} 47. h4 {[%emt 0:00:36]} Nh3 {[%emt 0:00:22]} 48. Na4 {[%emt 0:00:30]} Nf4 {[%emt 0:03:26]} 49. Bf1 {[%emt 0:05:25]} c4 {[%emt 0:06:08]} 50. Nb6 {[%emt 0:00:07]} Ke7 {[%emt 0:06:47]} 51. Kf3 {[%emt 0:00:28]} Ng6 {[%emt 0:01:12]} 52. h5 {[%emt 0:00:28]} Nf4 {[%emt 0:00:03]} 53. h6 {[%emt 0:00:06]} Nf7 {[%emt 0:00:19]} 54. Nxc4 {[%emt 0:00:25]} Ng6 {[%emt 0:02:53]} 55. Nxa5 {[%emt 0:00:24]} Nxh6 {[%emt 0:01:19]} 56. Nxb7 {[%emt 0:00:11]} Nf7 {[%emt 0:00:39]} 57. a4 {[%emt 0:00:10]} Kd7 {[%emt 0:00:22]} 58. b4 {[%emt 0:00:40]} Kc7 {[%emt 0:00:05]} 59. Nc5 {[%emt 0:00:05]} Nd6 {[%emt 0:00:13]} 60. a5 {[%emt 0:00:26]} Ne7 {[%emt 0:00:22]} 61. b5 {[%emt 0:00:13]} Nf7 {[%emt 0:01:10]} 62. b6+ {[%emt 0:00:35]} Kb8 {[%emt 0:00:21]} 63. a6 {[%emt 0:00:46]} Nd6 {[%emt 0:00:13]} 64. Nd7+ {[%emt 0:00:15]} Ka8 {[%emt 0:00:32]} 65. Bb5 {[%emt 0:03:40]} Nb7 {[%emt 0:01:05]} 66. Bc6 {[%emt 0:00:11]} Nxc6 {[%emt 0:00:04]} 67. dxc6 {[%emt 0:00:06]} Nd6 {[%emt 0:00:31]} 68. b7+ {[%emt 0:00:05]} 1-0

[Event "WYCC 2018 O14"]
[Site "Halkidiki"]
[Date "2018.10.27"]
[Round "8"]
[White "Kacharava, Nikolozi"]
[Black "Tengis, Tsog-Ochir"]
[Result "1-0"]
[ECO "C54"]
[WhiteElo "2373"]
[BlackElo "2205"]
[Annotator "NA"]
[PlyCount "105"]
[EventDate "2018.10.20"]
[EventType "swiss"]
[EventCountry "GRE"]
[SourceTitle "playchess.com"]
[Source "ChessBase"]
[SourceQuality "1"]
[TimeControl "40/5400+30:1800+30"]

1. e4 {[%emt 0:00:00]} e5 {[%emt 0:00:00]} 2. Nf3 {[%emt 0:00:07]} Nc6 {[%emt 0:00:00]} 3. Bc4 {[%emt 0:00:33]} Bc5 {[%emt 0:00:07]} 4. c3 {[%emt 0:00:39]} Nf6 {[%emt 0:00:07]} 5. d3 {[%emt 0:00:46]} d6 {[%emt 0:00:35]} 6. O-O {[%emt 0:00:44]} O-O {[%emt 0:00:22]} 7. Nbd2 {[%emt 0:00:47]} Be6 {[%emt 0:01:44]} 8. b4 {[%emt 0:06:13]} Bb6 {[%emt 0:00:21]} 9. a4 {[%emt 0:01:06]} a6 {[%emt 0:01:03]} 10. h3 {[%emt 0:06:04]} Ba7 {[%emt 0:00:33]} 11. Re1 {[%emt 0:10:46]} h6 {[%emt 0:04:42]} 12. Bb2 {[%emt 0:07:52]} Qd7 {[%emt 0:00:36]} 13. b5 {[%emt 0:02:06]} Ne7 {[%emt 0:04:22]} 14. bxa6 {[%emt 0:08:30]} bxa6 {[%emt 0:00:43]} 15. d4 {[%emt 0:02:17]} exd4 {[%emt 0:25:10]} 16. cxd4 {[%emt 0:02:10]} Bxc4 {[%emt 0:06:47]} 17. Nxc4 {[%emt 0:00:08]} d5 {[%emt 0:00:03]} 18. Nce5 {[%emt 0:05:25]} Qd8 {[%emt 0:00:07]} 19. exd5 {[%emt 0:01:26]} Qxd5 {[%emt 0:00:21]} 20. Qc2 {[%emt 0:04:38]} Rfc8 {[%emt 0:04:15]} 21. Ng4 {[%emt 0:04:51]} Ng6 {[%emt 0:03:04]} 22. Nxf6+ {[%emt 0:03:22]} gxf6 {[%emt 0:06:16]} 23. Qd2 {[%emt 0:01:47]} Rab8 {[%emt 0:02:38]} 24. Ba3 {[%emt 0:02:19]} Kh7 {[%emt 0:03:39]} 25. Rac1 {[%emt 0:02:33]} Rb3 {[%emt 0:01:51]} 26. Re3 {[%emt 0:03:24]} Rxe3 {[%emt 0:00:58]} 27. fxe3 {[%emt 0:05:13]} c6 {[%emt 0:03:59]} 28. Qd3 {[%emt 0:01:00]} Rg8 {[%emt 0:03:08]} 29. Kh1 {[%emt 0:06:00]} a5 {[%emt 0:02:37]} 30. Qc4 {[%emt 0:02:21]} Rb8 {[%emt 0:08:34]} 31. Qxc6 {[%emt 0:01:50]} Qb3 {[%emt 0:00:49]} 32. Qc4 {[%emt 0:03:32]} Qxc4 {[%emt 0:00:17]} 33. Rxc4 {[%emt 0:00:04]} Rb3 {[%emt 0:00:03]} 34. Bd6 {[%emt 0:02:19]} Kg7 {[%emt 0:01:37]} 35. e4 {[%emt 0:00:37]} Rb6 {[%emt 0:02:02]} 36. Bc7 {[%emt 0:02:50]} Rb4 {[%emt 0:03:06]} 37. Nd2 {[%emt 0:00:54]} Rb2 {[%emt 0:01:35]} 38. Nf3 {[%emt 0:00:41]} Rb1+ {[%emt 0:00:36]} 39. Kh2 {[%emt 0:00:17]} Rb4 {[%emt 0:00:01]} 40. Rxb4 {[%emt 0:00:00]} axb4 {[%emt 0:00:00]} 41. Ba5 {[%emt 0:07:14]} b3 {[%emt 0:00:03]} 42. Nd2 {[%emt 0:00:51]} Bxd4 {[%emt 0:02:04]} 43. Nxb3 {[%emt 0:00:14]} Be5+ {[%emt 0:00:18]} 44. Kh1 {[%emt 0:01:22]} Kf8 {[%emt 0:00:13]} 45. Bd2 {[%emt 0:04:35]} Ke7 {[%emt 0:07:27]} 46. Bxh6 {[%emt 0:00:34]} Kd6 {[%emt 0:00:01]} 47. Be3 {[%emt 0:01:04]} Kc7 {[%emt 0:00:21]} 48. Kg1 {[%emt 0:02:05]} Ne7 {[%emt 0:00:38]} 49. Kf2 {[%emt 0:04:16]} Nc6 {[%emt 0:01:41]} 50. h4 {[%emt 0:00:58]} Nb4 {[%emt 0:00:53]} 51. h5 {[%emt 0:00:54]} Nd3+ {[%emt 0:00:13]} 52. Ke2 {[%emt 0:00:39]} Nb2 {[%emt 0:00:02]} 53. h6 {[%emt 0:01:12]} 1-0

[Event "WYCC 2018 O14"]
[Site "Halkidiki"]
[Date "2018.10.27"]
[Round "8"]
[White "Murzin, Volodar"]
[Black "Suleymanli, Aydin"]
[Result "1/2-1/2"]
[ECO "B13"]
[WhiteElo "2340"]
[BlackElo "2313"]
[Annotator "NA"]
[PlyCount "139"]
[EventDate "2018.10.20"]
[EventType "swiss"]
[EventCountry "GRE"]
[SourceTitle "playchess.com"]
[Source "ChessBase"]
[SourceQuality "1"]
[TimeControl "40/5400+30:1800+30"]

1. e4 {[%emt 0:00:00]} c6 {[%emt 0:00:00]} 2. d4 {[%emt 0:00:00]} d5 {[%emt 0:00:00]} 3. exd5 {[%emt 0:00:00]} cxd5 {[%emt 0:00:00]} 4. Bd3 {[%emt 0:00:04]} Nc6 {[%emt 0:00:15]} 5. c3 {[%emt 0:00:05]} Qc7 {[%emt 0:00:00]} 6. Ne2 {[%emt 0:00:28]} Bg4 {[%emt 0:00:00]} 7. O-O {[%emt 0:01:20]} e6 {[%emt 0:05:06]} 8. Qe1 {[%emt 0:01:55]} g6 {[%emt 0:21:21]} 9. Bf4 {[%emt 0:16:15]} Bd6 {[%emt 0:01:46]} 10. Bxd6 {[%emt 0:00:42]} Qxd6 {[%emt 0:00:03]} 11. Ng3 {[%emt 0:02:48]} Nge7 {[%emt 0:03:03]} 12. Na3 {[%emt 0:02:00]} h5 {[%emt 0:13:44]} 13. f3 {[%emt 0:10:47]} Bf5 {[%emt 0:00:08]} 14. Nxf5 {[%emt 0:00:54]} gxf5 {[%emt 0:01:01]} 15. Qg3 {[%emt 0:04:06]} Qd7 {[%emt 0:02:32]} 16. Kh1 {[%emt 0:07:14]} O-O-O {[%emt 0:02:44]} 17. b4 {[%emt 0:03:53]} h4 {[%emt 0:01:59]} 18. Qf2 {[%emt 0:02:10]} Ng6 {[%emt 0:01:10]} 19. Qd2 {[%emt 0:01:39]} Qd6 {[%emt 0:02:44]} 20. f4 {[%emt 0:01:01]} Nge7 {[%emt 0:01:56]} 21. Rac1 {[%emt 0:02:43]} Kb8 {[%emt 0:02:37]} 22. Qb2 {[%emt 0:03:53]} Ng8 {[%emt 0:10:18]} 23. Nb5 {[%emt 0:08:40]} Qf8 {[%emt 0:00:13]} 24. c4 {[%emt 0:07:15]} Qxb4 {[%emt 0:05:36]} 25. Qe2 {[%emt 0:01:40]} dxc4 {[%emt 0:16:03]} 26. Bxc4 {[%emt 0:01:22]} Nf6 {[%emt 0:00:13]} 27. Bd3 {[%emt 0:02:04]} Rd5 {[%emt 0:03:05]} 28. Rb1 {[%emt 0:07:10]} Qe7 {[%emt 0:01:39]} 29. Rfc1 {[%emt 0:00:47]} Rc8 {[%emt 0:02:28]} 30. Qf2 {[%emt 0:01:07]} Ne4 {[%emt 0:02:00]} 31. Qe1 {[%emt 0:03:32]} Nd6 {[%emt 0:00:26]} 32. h3 {[%emt 0:00:47]} Nxd4 {[%emt 0:01:14]} 33. Rxc8+ {[%emt 0:00:32]} Nxc8 {[%emt 0:00:09]} 34. Bc4 {[%emt 0:01:20]} Rc5 {[%emt 0:00:46]} 35. Nxd4 {[%emt 0:00:37]} Rxc4 {[%emt 0:00:02]} 36. Nf3 {[%emt 0:00:12]} Qc7 {[%emt 0:00:38]} 37. Qxh4 {[%emt 0:02:25]} Rxf4 {[%emt 0:00:08]} 38. Qf6 {[%emt 0:01:03]} Rxf3 {[%emt 0:01:16]} 39. gxf3 {[%emt 0:00:19]} Qg3 {[%emt 0:00:10]} 40. Qc3 {[%emt 0:00:00]} Qxh3+ {[%emt 0:00:00]} 41. Kg1 {[%emt 0:02:30]} Qg3+ {[%emt 0:00:15]} 42. Kf1 {[%emt 0:00:25]} Ne7 {[%emt 0:09:05]} 43. Qa3 {[%emt 0:04:34]} Qc7 {[%emt 0:04:25]} 44. Rd1 {[%emt 0:04:54]} b6 {[%emt 0:11:59]} 45. Qc1 {[%emt 0:03:09]} Nd5 {[%emt 0:01:18]} 46. Qxc7+ {[%emt 0:00:39]} Kxc7 {[%emt 0:00:02]} 47. Rc1+ {[%emt 0:00:01]} Kd6 {[%emt 0:05:56]} 48. Ke2 {[%emt 0:00:14]} Ke5 {[%emt 0:00:34]} 49. Kd3 {[%emt 0:05:04]} Kf4 {[%emt 0:00:41]} 50. Ke2 {[%emt 0:00:08]} e5 {[%emt 0:00:38]} 51. a4 {[%emt 0:01:27]} a5 {[%emt 0:01:18]} 52. Rc6 {[%emt 0:03:05]} e4 {[%emt 0:00:05]} 53. Kf2 {[%emt 0:01:03]} Ke5 {[%emt 0:00:07]} 54. Rc4 {[%emt 0:00:43]} Kf4 {[%emt 0:01:26]} 55. Rc6 {[%emt 0:01:03]} f6 {[%emt 0:00:36]} 56. Rc4 {[%emt 0:01:15]} Nb4 {[%emt 0:00:12]} 57. Ke2 {[%emt 0:00:34]} Ke5 {[%emt 0:00:44]} 58. Ke3 {[%emt 0:01:00]} Kd5 {[%emt 0:00:31]} 59. Rc8 {[%emt 0:00:19]} exf3 {[%emt 0:00:32]} 60. Kxf3 {[%emt 0:00:26]} Nd3 {[%emt 0:00:17]} 61. Rd8+ {[%emt 0:00:25]} Kc4 {[%emt 0:00:05]} 62. Rd6 {[%emt 0:00:06]} Ne5+ {[%emt 0:00:25]} 63. Kf4 {[%emt 0:00:07]} Kc5 {[%emt 0:00:30]} 64. Rxf6 {[%emt 0:00:08]} Nc4 {[%emt 0:00:33]} 65. Kxf5 {[%emt 0:00:54]} Nb2 {[%emt 0:00:23]} 66. Ke4 {[%emt 0:00:07]} Nxa4 {[%emt 0:00:07]} 67. Kd3 {[%emt 0:00:04]} Kb4 {[%emt 0:00:06]} 68. Kc2 {[%emt 0:00:11]} b5 {[%emt 0:00:47]} 69. Rf4+ {[%emt 0:00:39]} Kc5 {[%emt 0:00:06]} 70. Re4 {[%emt 0:00:52]} 1/2-1/2

[Event "WYCC 2018 O14"]
[Site "Halkidiki"]
[Date "2018.10.27"]
[Round "8"]
[White "Nogerbek, Kazybek"]
[Black "Avila Pavas, Santiago"]
[Result "1/2-1/2"]
[ECO "B42"]
[WhiteElo "2316"]
[BlackElo "2277"]
[Annotator "NA"]
[PlyCount "73"]
[EventDate "2018.10.20"]
[EventType "swiss"]
[EventCountry "GRE"]
[SourceTitle "playchess.com"]
[Source "ChessBase"]
[SourceQuality "1"]
[TimeControl "40/5400+30:1800+30"]

1. e4 {[%emt 0:00:00]} c5 {[%emt 0:00:00]} 2. Nf3 {[%emt 0:00:00]} e6 {[%emt 0:00:33]} 3. d4 {[%emt 0:00:00]} cxd4 {[%emt 0:00:08]} 4. Nxd4 {[%emt 0:00:11]} a6 {[%emt 0:00:06]} 5. Bd3 {[%emt 0:00:09]} Ne7 {[%emt 0:00:16]} 6. O-O {[%emt 0:04:35]} Nbc6 {[%emt 0:02:08]} 7. Nf3 {[%emt 0:01:58]} g6 {[%emt 0:05:04]} 8. c4 {[%emt 0:05:21]} Bg7 {[%emt 0:02:33]} 9. Qe2 {[%emt 0:01:36]} d6 {[%emt 0:08:34]} 10. Rd1 {[%emt 0:01:06]} Qc7 {[%emt 0:00:23]} 11. Nc3 {[%emt 0:07:00]} Ne5 {[%emt 0:05:21]} 12. Be3 {[%emt 0:02:37]} Bd7 {[%emt 0:01:18]} 13. Rac1 {[%emt 0:02:02]} O-O {[%emt 0:06:21]} 14. b4 {[%emt 0:10:59]} b6 {[%emt 0:18:15]} 15. Nxe5 {[%emt 0:03:13]} Bxe5 {[%emt 0:06:07]} 16. f4 {[%emt 0:05:32]} Bg7 {[%emt 0:00:09]} 17. Qf2 {[%emt 0:00:11]} Rab8 {[%emt 0:09:05]} 18. f5 {[%emt 0:08:35]} exf5 {[%emt 0:06:03]} 19. exf5 {[%emt 0:00:49]} Bxf5 {[%emt 0:19:00]} 20. Nd5 {[%emt 0:02:22]} Nxd5 {[%emt 0:00:04]} 21. cxd5 {[%emt 0:00:04]} Qd7 {[%emt 0:00:06]} 22. Bxf5 {[%emt 0:00:24]} gxf5 {[%emt 0:00:04]} 23. Rc6 {[%emt 0:01:01]} Rfe8 {[%emt 0:05:39]} 24. Bd4 {[%emt 0:13:14]} Bxd4 {[%emt 0:02:39]} 25. Rxd4 {[%emt 0:00:26]} Re5 {[%emt 0:00:53]} 26. h3 {[%emt 0:02:22]} Qe7 {[%emt 0:01:12]} 27. Qg3+ {[%emt 0:01:51]} Kh8 {[%emt 0:00:26]} 28. Rdc4 {[%emt 0:00:18]} Re8 {[%emt 0:00:07]} 29. Kh2 {[%emt 0:07:59]} Rxd5 {[%emt 0:00:48]} 30. Rc8 {[%emt 0:03:19]} Qe5 {[%emt 0:01:03]} 31. Qxe5+ {[%emt 0:02:54]} Rdxe5 {[%emt 0:00:04]} 32. Rxe8+ {[%emt 0:00:04]} Rxe8 {[%emt 0:00:04]} 33. Rc6 {[%emt 0:00:03]} Re2 {[%emt 0:01:14]} 34. Rxd6 {[%emt 0:01:37]} Rxa2 {[%emt 0:00:06]} 35. Rxb6 {[%emt 0:00:03]} Kg7 {[%emt 0:00:45]} 36. Kg3 {[%emt 0:00:05]} a5 {[%emt 0:00:38]} 37. bxa5 {[%emt 0:02:25]} 1/2-1/2

[Event "WYCC 2018 O14"]
[Site "Halkidiki"]
[Date "2018.10.27"]
[Round "8"]
[White "Cardoso Cardoso, Jose Gabriel"]
[Black "Huang, Renjie"]
[Result "0-1"]
[ECO "D35"]
[WhiteElo "2313"]
[BlackElo "2322"]
[Annotator "NA"]
[PlyCount "128"]
[EventDate "2018.10.20"]
[EventType "swiss"]
[EventCountry "GRE"]
[SourceTitle "playchess.com"]
[Source "ChessBase"]
[SourceQuality "1"]
[TimeControl "40/5400+30:1800+30"]

1. d4 {[%emt 0:00:00]} Nf6 {[%emt 0:00:00]} 2. c4 {[%emt 0:00:00]} e6 {[%emt 0:00:00]} 3. Nc3 {[%emt 0:00:09]} d5 {[%emt 0:00:00]} 4. cxd5 {[%emt 0:00:06]} exd5 {[%emt 0:00:00]} 5. Bg5 {[%emt 0:00:10]} c6 {[%emt 0:00:50]} 6. e3 {[%emt 0:00:06]} Bf5 {[%emt 0:00:10]} 7. Qf3 {[%emt 0:00:06]} Bg6 {[%emt 0:02:14]} 8. Bxf6 {[%emt 0:00:04]} gxf6 {[%emt 0:00:23]} 9. h4 {[%emt 0:04:54]} Qb6 {[%emt 0:03:04]} 10. O-O-O {[%emt 0:01:08]} h5 {[%emt 0:05:53]} 11. Qxf6 {[%emt 0:13:58]} Rg8 {[%emt 0:00:13]} 12. Bd3 {[%emt 0:00:29]} Nd7 {[%emt 0:05:22]} 13. Qf3 {[%emt 0:01:27]} Bb4 {[%emt 0:00:32]} 14. Nge2 {[%emt 0:00:37]} O-O-O {[%emt 0:00:46]} 15. g3 {[%emt 0:13:01]} Qa5 {[%emt 0:01:14]} 16. a3 {[%emt 0:05:37]} Bd6 {[%emt 0:00:43]} 17. e4 {[%emt 0:03:45]} dxe4 {[%emt 0:07:51]} 18. Nxe4 {[%emt 0:06:59]} Nb6 {[%emt 0:06:15]} 19. N2c3 {[%emt 0:07:46]} Bxa3 {[%emt 0:06:55]} 20. bxa3 {[%emt 0:00:38]} f5 {[%emt 0:01:06]} 21. Nb1 {[%emt 0:14:10]} fxe4 {[%emt 0:01:57]} 22. Bxe4 {[%emt 0:00:05]} Bxe4 {[%emt 0:03:33]} 23. Qxe4 {[%emt 0:00:01]} Rge8 {[%emt 0:00:20]} 24. Qc2 {[%emt 0:01:11]} Na4 {[%emt 0:02:03]} 25. Qd2 {[%emt 0:07:43]} Qa6 {[%emt 0:09:31]} 26. Rhe1 {[%emt 0:00:52]} Rxe1 {[%emt 0:04:29]} 27. Rxe1 {[%emt 0:00:05]} Nc5 {[%emt 0:00:11]} 28. Re3 {[%emt 0:02:27]} Qc4+ {[%emt 0:01:05]} 29. Qc3 {[%emt 0:02:33]} Qf1+ {[%emt 0:00:11]} 30. Kc2 {[%emt 0:00:04]} Qxf2+ {[%emt 0:00:05]} 31. Nd2 {[%emt 0:00:02]} Qf5+ {[%emt 0:02:47]} 32. Kc1 {[%emt 0:00:05]} Ne6 {[%emt 0:00:44]} 33. Re5 {[%emt 0:01:25]} Qf6 {[%emt 0:00:32]} 34. Qf3 {[%emt 0:07:09]} Qxf3 {[%emt 0:01:37]} 35. Nxf3 {[%emt 0:00:01]} Nxd4 {[%emt 0:00:10]} 36. Ng5 {[%emt 0:02:47]} Kc7 {[%emt 0:00:39]} 37. Ne4 {[%emt 0:01:49]} Rd5 {[%emt 0:03:10]} 38. Re7+ {[%emt 0:03:03]} Kb6 {[%emt 0:00:45]} 39. Nc3 {[%emt 0:01:23]} Ra5 {[%emt 0:00:44]} 40. a4 {[%emt 0:00:00]} Nf5 {[%emt 0:00:00]} 41. Rh7 {[%emt 0:05:05]} Nxg3 {[%emt 0:01:25]} 42. Kd2 {[%emt 0:00:05]} Rf5 {[%emt 0:03:29]} 43. Rg7 {[%emt 0:00:17]} Rf2+ {[%emt 0:00:39]} 44. Ke1 {[%emt 0:00:14]} Rf3 {[%emt 0:00:55]} 45. Kd2 {[%emt 0:00:06]} Nf5 {[%emt 0:00:37]} 46. Rg5 {[%emt 0:00:04]} Nxh4 {[%emt 0:00:15]} 47. Rxh5 {[%emt 0:00:02]} Nf5 {[%emt 0:00:25]} 48. Rh7 {[%emt 0:00:12]} Nd6 {[%emt 0:02:06]} 49. Kc2 {[%emt 0:04:03]} a5 {[%emt 0:00:23]} 50. Rh6 {[%emt 0:00:05]} Kc5 {[%emt 0:01:09]} 51. Rh5+ {[%emt 0:00:13]} Rf5 {[%emt 0:00:19]} 52. Rh7 {[%emt 0:00:07]} Rf4 {[%emt 0:00:24]} 53. Kb3 Rb4+ {[%emt 0:01:28]} 54. Kc2 {[%emt 0:00:36]} Rg4 {[%emt 0:02:14]} 55. Kb3 {[%emt 0:00:04]} Rg3 {[%emt 0:01:03]} 56. Rh5+ {[%emt 0:00:43]} Kb6 {[%emt 0:00:02]} 57. Kc2 {[%emt 0:00:08]} Rg4 {[%emt 0:00:37]} 58. Rh6 {[%emt 0:01:40]} Ne4 {[%emt 0:00:25]} 59. Nd5+ {[%emt 0:04:01]} Ka7 {[%emt 0:00:38]} 60. Ne7 {[%emt 0:00:52]} Nc5 {[%emt 0:00:38]} 61. Rh7 {[%emt 0:01:24]} Rc4+ {[%emt 0:00:21]} 62. Kb2 {[%emt 0:00:46]} Nxa4+ {[%emt 0:00:23]} 63. Kb3 {[%emt 0:00:01]} Rb4+ {[%emt 0:00:05]} 64. Ka3 {[%emt 0:00:01]} Ka6 {[%emt 0:00:25]} 0-1

[Event "WYCC 2018 O14"]
[Site "Halkidiki"]
[Date "2018.10.27"]
[Round "8"]
[White "Krastev, Alexander"]
[Black "Juhasz, Agoston"]
[Result "1-0"]
[ECO "A00"]
[WhiteElo "2298"]
[BlackElo "2174"]
[Annotator "NA"]
[PlyCount "89"]
[EventDate "2018.10.20"]
[EventType "swiss"]
[EventCountry "GRE"]
[SourceTitle "playchess.com"]
[Source "ChessBase"]
[SourceQuality "1"]
[TimeControl "40/5400+30:1800+30"]

1. a3 {[%emt 0:00:00]} d5 {[%emt 0:10:32]} 2. Nf3 {[%emt 0:00:00]} Nf6 {[%emt 0:00:18]} 3. g3 {[%emt 0:01:05]} c6 {[%emt 0:02:10]} 4. Bg2 {[%emt 0:00:18]} Bg4 {[%emt 0:00:13]} 5. d3 {[%emt 0:02:40]} Nbd7 {[%emt 0:00:27]} 6. Nbd2 {[%emt 0:00:45]} e5 {[%emt 0:02:18]} 7. e4 {[%emt 0:06:18]} Bc5 {[%emt 0:08:23]} 8. O-O {[%emt 0:01:44]} O-O {[%emt 0:01:09]} 9. h3 {[%emt 0:02:02]} Bxf3 10. Qxf3 {[%emt 0:02:10]} Re8 {[%emt 0:07:08]} 11. Re1 {[%emt 0:03:18]} a5 {[%emt 0:07:40]} 12. Nf1 {[%emt 0:06:22]} a4 {[%emt 0:06:34]} 13. g4 {[%emt 0:03:50]} dxe4 {[%emt 0:04:41]} 14. dxe4 {[%emt 0:00:08]} Nf8 {[%emt 0:00:17]} 15. Ng3 {[%emt 0:02:32]} Ne6 {[%emt 0:01:03]} 16. c3 {[%emt 0:05:56]} Nd7 {[%emt 0:06:40]} 17. Nf5 {[%emt 0:08:36]} Qb6 {[%emt 0:01:21]} 18. Bf1 {[%emt 0:06:22]} Rad8 {[%emt 0:03:25]} 19. Bc4 {[%emt 0:10:27]} Bf8 {[%emt 0:02:04]} 20. g5 {[%emt 0:15:53]} Qc7 {[%emt 0:10:16]} 21. Be3 {[%emt 0:03:15]} Nf4 {[%emt 0:01:09]} 22. Rad1 {[%emt 0:00:35]} b5 {[%emt 0:00:48]} 23. Bf1 {[%emt 0:01:27]} Nc5 {[%emt 0:02:55]} 24. Rxd8 {[%emt 0:09:14]} Rxd8 {[%emt 0:00:37]} 25. Bxf4 {[%emt 0:01:34]} exf4 {[%emt 0:00:08]} 26. Nd4 {[%emt 0:01:11]} Qe5 {[%emt 0:02:42]} 27. Nxc6 {[%emt 0:04:16]} Qxg5+ {[%emt 0:00:10]} 28. Qg2 {[%emt 0:00:47]} Qxg2+ {[%emt 0:00:55]} 29. Kxg2 {[%emt 0:00:02]} Rd2 {[%emt 0:00:16]} 30. Re2 {[%emt 0:01:15]} Rd6 {[%emt 0:02:08]} 31. Nd4 {[%emt 0:00:35]} Rg6+ {[%emt 0:01:29]} 32. Kh2 {[%emt 0:00:46]} Rb6 {[%emt 0:11:17]} 33. f3 {[%emt 0:00:30]} Nb7 {[%emt 0:00:31]} 34. Rg2 {[%emt 0:00:28]} Nd6 {[%emt 0:00:55]} 35. Rg5 {[%emt 0:00:14]} f5 {[%emt 0:01:36]} 36. Nxf5 {[%emt 0:00:44]} Nf7 {[%emt 0:00:24]} 37. Rg4 {[%emt 0:00:36]} h5 {[%emt 0:00:19]} 38. Rg2 {[%emt 0:00:32]} Ne5 {[%emt 0:00:52]} 39. Nd4 {[%emt 0:00:03]} Bc5 {[%emt 0:00:15]} 40. Be2 {[%emt 0:00:00]} Kf7 {[%emt 0:00:00]} 41. Rg5 {[%emt 0:05:12]} Bd6 {[%emt 0:12:54]} 42. Rxh5 {[%emt 0:03:59]} Kg6 {[%emt 0:02:22]} 43. Rf5 {[%emt 0:01:08]} Nc4 {[%emt 0:06:04]} 44. Rxb5 {[%emt 0:00:26]} Rxb5 {[%emt 0:02:40]} 45. Nxb5 {[%emt 0:00:05]} 1-0